bitfinex/quotes_ETHUSD_20250625
["timestamp","ask_amount","ask_price","bid_price","bid_amount"]
[1750889134068,0.5168,2420.2,2419.7,4.13262534]
[1750889134377,0.5168,2420.2,2419.9,4.13239237]
[1750889134541,8.95,2420.3,2419.7,0.46779129]
[1750889134740,8.95,2420.3,2419.6,0.54528752]
[1750889134944,4.13207199,2420.1,2419.6,0.54528752]
[1750889135256,7.04,2420.0,2419.7,4.13272649]
[1750889135569,14.44043558,2420.4,2419.7,4.13272649]
[1750889135570,1.91,2420.4,2419.9,4.13230336]
[1750889135762,11.91,2420.4,2419.9,4.11934336]
[1750889135962,11.91,2420.4,2420.0,4.13221509]
[1750889136169,1.91,2420.4,2419.7,0.8061]
[1750889136369,0.5168,2421.0,2419.7,0.8061]
[1750889136565,6.21679562,2420.9,2419.8,0.54841575]
[1750889136755,6.21679562,2420.9,2419.8,4.13257293]
[1750889136756,8.964,2420.8,2419.8,4.13257293]
[1750889136961,13.09498019,2420.8,2419.7,0.8061]
[1750889137156,0.2064,2420.3,2420.1,4.13204775]
[1750889137362,0.2064,2420.5,2420.3,4.13155894]
[1750889137556,0.2064,2420.5,2420.4,4.1315485]
[1750889137786,0.2064,2420.5,2420.2,4.13177573]
[1750889137949,0.2064,2420.5,2420.4,4.1315485]
[1750889138363,0.2064,2420.5,2420.4,4.9376485]
[1750889140070,1.91,2421.0,2420.6,4.13111633]
[1750889140274,0.2064,2420.9,2420.6,4.13111633]
[1750889140580,1.91,2421.0,2420.4,0.2064]
[1750889140581,11.91,2421.0,2420.4,0.2064]
[1750889140781,11.91,2421.0,2420.2,0.84701757]
[1750889140782,0.2064,2420.6,2420.2,4.13188835]
[1750889141080,0.2064,2420.6,2420.1,4.33840801]
[1750889141452,0.2064,2420.6,2420.2,4.13181534]
[1750889141753,4.33765598,2420.6,2420.1,0.2064]
[1750889141965,0.2064,2420.6,2420.2,4.13188902]
[1750889142167,6.04150501,2420.5,2419.9,4.13224114]
[1750889142362,0.2064,2420.3,2419.9,4.13224114]
[1750889142566,0.2064,2420.3,2420.0,4.13214102]
[1750889143688,0.2064,2420.3,2420.1,4.13204298]
[1750889144959,0.55,2420.4,2419.6,0.54528752]
[1750889145159,0.2064,2420.0,2419.6,4.67811603]
[1750889145375,0.2064,2420.0,2419.7,4.13273344]
[1750889145882,0.2064,2420.0,2419.6,0.54528752]
[1750889145883,0.2064,2420.0,2419.6,4.67812809]
[1750889146258,0.2064,2420.0,2419.7,4.13271386]
[1750889146460,0.2064,2420.0,2419.8,4.1324507]
[1750889146659,0.2064,2420.0,2419.6,0.54528752]
[1750889146988,0.2064,2420.0,2419.7,4.33897564]
[1750889147489,0.2064,2420.0,2419.7,4.33909005]
[1750889147690,1.0668,2419.9,2419.7,0.2064]
[1750889147872,14.68274372,2419.7,2419.6,0.54528752]
[1750889148182,15.19954372,2419.7,2419.6,0.54528752]
[1750889148576,15.50865508,2419.7,2419.6,0.54528752]
[1750889150587,15.19954372,2419.7,2419.6,0.54528752]
[1750889150791,17.11054372,2419.7,2419.6,0.54528752]
[1750889151196,17.42354984,2419.7,2419.6,0.54528752]
[1750889151560,16.56054372,2419.7,2419.6,0.54528752]
[1750889153762,16.04374372,2419.7,2419.6,0.54528752]
[1750889154909,6.04374372,2419.7,2419.6,0.54528752]
[1750889157973,11.822,2419.9,2419.6,0.54528752]
[1750889158167,1.911,2419.9,2419.7,4.13274372]
[1750889158379,1.911,2419.9,2419.6,0.54528752]
[1750889158380,0.2064,2420.0,2419.9,4.13230201]
[1750889158571,0.2064,2420.2,2419.9,4.13230201]
[1750889159099,0.2064,2420.2,2419.9,0.7818]
[1750889159657,0.2064,2420.2,2419.6,0.54528752]
[1750889159658,4.13200619,2420.2,2419.6,0.54528752]
[1750889160003,0.2064,2420.0,2419.6,4.88452357]
[1750889160197,0.2064,2420.0,2419.6,5.58611326]
[1750889160489,4.33866483,2420.0,2419.6,1.45327721]
[1750889160881,4.33866483,2420.0,2419.6,5.58617442]
[1750889161079,0.2064,2420.0,2419.6,5.58617442]
[1750889161603,0.2064,2420.0,2419.6,1.45327721]
[1750889161604,0.7232,2420.0,2419.6,1.45327721]
[1750889161760,4.33907284,2419.8,2419.6,0.54528752]
[1750889162891,0.2064,2419.8,2419.6,0.54528752]
[1750889163366,4.33898151,2419.8,2419.6,0.54528752]
[1750889163783,0.2064,2419.8,2419.6,0.54528752]
[1750889163998,0.2064,2419.8,2419.6,4.67818617]
[1750889164309,1.941,2420.3,2419.7,0.7582]
[1750889164461,4.13206609,2420.1,2419.7,0.9646]
[1750889164665,4.33838245,2420.2,2419.7,5.0972948]
[1750889164890,0.2064,2420.2,2419.8,4.13255504]
[1750889165191,0.2064,2420.2,2419.9,4.13228459]
[1750889165394,0.2064,2420.2,2419.8,0.97752282]
[1750889165596,0.2064,2420.2,2419.8,4.13255907]
[1750889166402,0.2064,2420.2,2419.9,4.13236033]
[1750889166696,0.2064,2420.2,2419.9,4.13240216]
[1750889166998,0.2064,2420.2,2420.0,4.13213076]
[1750889167693,0.2064,2420.2,2419.9,4.1323109]
[1750889167898,0.2064,2420.2,2419.9,0.922947]
[1750889168191,0.2064,2420.2,2420.1,4.13206065]
[1750889169388,5.79274951,2420.5,2420.1,4.13206065]
[1750889169700,0.2064,2420.4,2420.1,4.13189259]
[1750889170681,0.2064,2420.4,2420.0,4.33862569]
[1750889170682,0.2064,2420.4,2420.0,4.33854402]
[1750889171202,0.2064,2420.4,2420.1,4.13205517]
[1750889171498,0.2064,2420.4,2420.2,4.13179727]
[1750889171806,0.2064,2420.4,2420.1,4.13198785]
[1750889171975,0.2064,2420.4,2420.0,4.33854087]
[1750889172575,0.2064,2420.4,2420.1,4.13205914]
[1750889173303,0.2064,2420.4,2420.2,4.13188464]
[1750889173909,0.2064,2420.4,2420.3,4.1317192]
[1750889174503,0.2064,2420.4,2420.2,0.778]
[1750889175184,0.2064,2420.4,2420.2,4.90984479]
[1750889177912,0.2064,2420.4,2420.3,4.1317192]
[1750889178109,1.941,2420.7,2420.3,4.3381192]
[1750889178480,1.941,2420.7,2420.4,4.13154035]
[1750889178685,1.941,2420.7,2420.5,4.13121953]
[1750889179679,1.941,2420.7,2420.6,4.13120713]
[1750889180011,15.79274951,2421.2,2420.7,0.7508]
[1750889180012,5.79274951,2421.2,2420.7,0.7508]
[1750889180177,5.79274951,2421.2,2420.7,0.9572]
[1750889180382,5.79274951,2421.2,2420.9,4.33706663]
[1750889180579,5.79274951,2421.2,2421.0,4.13052126]
[1750889181318,5.79274951,2421.2,2421.1,4.13035397]
[1750889182623,5.79274951,2421.2,2421.0,4.13043703]
[1750889182820,5.79274951,2421.2,2420.8,4.13080991]
[1750889182987,5.79274951,2421.2,2421.1,4.13035397]
[1750889184411,5.79274951,2421.2,2421.1,0.7508]
[1750889184615,5.79274951,2421.2,2421.0,4.13043556]
[1750889185018,5.79274951,2421.2,2420.8,0.7508]
[1750889185227,5.79274951,2421.2,2420.7,4.13087505]
[1750889185228,6.30954951,2421.2,2420.7,4.13087505]
[1750889185418,6.30954951,2421.2,2420.8,4.13077993]
[1750889185787,10.43981877,2421.2,2420.7,4.13094378]
[1750889186097,4.13042463,2421.1,2420.6,4.13116801]
[1750889186916,4.13054242,2421.0,2420.5,4.13128324]
[1750889187292,4.13072482,2420.9,2420.4,4.88226335]
[1750889187493,4.13059962,2421.0,2420.5,4.13137336]
[1750889189110,4.13059962,2421.0,2420.6,4.13119804]
[1750889189427,7.76654224,2421.2,2420.8,4.13077895]
[1750889189922,7.76654224,2421.2,2420.9,4.13061793]
[1750889190492,6.30954951,2421.2,2420.8,4.13076078]
[1750889190693,6.30954951,2421.2,2420.4,11.90223529]
[1750889190894,6.30954951,2421.2,2420.9,4.13069118]
[1750889191211,0.2064,2421.1,2420.9,4.13069118]
[1750889192301,0.2064,2421.1,2421.0,4.13052457]
[1750889192515,5.79274951,2421.2,2421.1,4.13035397]
[1750889192710,0.2064,2421.4,2421.2,4.13003996]
[1750889192912,0.2064,2421.4,2421.3,4.1300128]
[1750889196319,11.14089159,2422.0,2421.2,4.13015536]
[1750889196320,6.30954951,2422.5,2421.4,0.7811]
[1750889196507,6.94050446,2422.5,2422.4,4.12813738]
[1750889196707,5.79274951,2422.5,2422.1,0.7811]
[1750889196916,5.79274951,2422.5,2421.9,4.12891714]
[1750889196917,5.79274951,2422.5,2421.9,4.12897788]
[1750889197237,5.79274951,2422.5,2422.1,4.128556]
[1750889197433,6.78479512,2422.5,2422.1,4.128556]
[1750889197935,6.78479512,2422.5,2422.2,4.12846216]
[1750889198430,6.78479512,2422.5,2422.2,4.12845403]
[1750889198632,6.78479512,2422.5,2422.3,4.12829193]
[1750889199349,5.79274951,2422.5,2422.4,4.12813738]
[1750889200013,5.79274951,2422.5,2422.3,4.12821582]
[1750889200744,5.79274951,2422.5,2422.4,4.12813738]
[1750889201041,5.79274951,2422.5,2422.3,4.12824007]
[1750889201541,5.79274951,2422.5,2422.0,0.7802]
[1750889201712,0.5168,2422.4,2421.9,4.12898513]
[1750889202052,4.12832374,2422.3,2421.8,4.1291099]
[1750889202229,4.12881895,2422.1,2421.5,0.7715]
[1750889202437,21.83119388,2422.3,2421.7,4.12919962]
[1750889202631,4.12855449,2422.2,2421.7,4.12919962]
[1750889202835,4.12866566,2422.1,2421.6,4.1293987]
[1750889203517,4.12866566,2422.1,2421.7,4.12932784]
[1750889203731,4.12887906,2422.0,2421.5,0.7715]
[1750889203919,6.50888562,2422.2,2421.7,4.12921544]
[1750889204118,4.12865773,2422.1,2421.6,4.12942038]
[1750889204342,4.12882049,2422.0,2421.5,4.90107949]
[1750889204548,6.5089012,2422.2,2421.7,4.1292242]
[1750889204751,4.70792728,2422.1,2421.6,4.12940643]
[1750889205656,0.57927495,2422.1,2421.5,4.90112189]
[1750889205845,0.57927495,2422.1,2421.7,4.12922508]
[1750889206155,4.70793231,2422.1,2421.6,4.12942245]
[1750889206351,0.2064,2421.9,2421.7,4.12928403]
[1750889206530,0.2064,2421.9,2421.5,0.7715]
[1750889206731,0.2064,2421.9,2421.5,4.90109269]
[1750889206937,0.2064,2421.9,2421.6,4.12947594]
[1750889208657,0.2064,2421.9,2421.5,4.90107819]
[1750889209030,0.2064,2421.9,2421.6,4.12949222]
[1750889209958,0.2064,2421.9,2421.7,4.12925847]
[1750889210341,0.2064,2421.9,2421.6,4.1294372]
[1750889211053,0.7232,2421.9,2421.4,4.33615403]
[1750889211248,0.7232,2421.9,2421.2,6.992]
[1750889211249,4.12946354,2421.7,2421.2,6.992]
[1750889211452,4.12984224,2421.4,2420.7,0.753]
[1750889211761,0.2064,2421.2,2420.8,0.2064]
[1750889212162,4.13050813,2421.1,2420.8,0.2064]
[1750889212331,4.33658619,2421.2,2420.8,0.2064]
[1750889213135,4.13036156,2421.1,2420.8,0.2064]
[1750889214732,4.13069519,2420.9,2420.8,0.2064]
[1750889215053,0.41306952,2420.9,2420.3,1.03109897]
[1750889215261,4.33738156,2420.8,2420.3,1.23749897]
[1750889215453,4.33738156,2420.8,2420.3,1.031]
[1750889215962,4.33738156,2420.8,2420.3,5.16268363]
[1750889216133,4.33738156,2420.8,2420.3,6.09213979]
[1750889216134,0.2064,2420.8,2420.3,6.09213979]
[1750889216334,0.2064,2420.8,2420.4,4.1315485]
[1750889217146,0.2064,2420.8,2420.5,4.13132928]
[1750889217740,2.4278,2421.6,2420.6,0.7746]
[1750889217938,2.4278,2421.6,2420.8,0.7746]
[1750889218238,2.4278,2421.6,2421.4,4.12984224]
[1750889218438,1.911,2421.6,2421.4,4.12984224]
[1750889219043,1.911,2421.6,2421.3,4.90447491]
[1750889219250,1.911,2421.6,2421.4,4.12984224]
[1750889220063,1.911,2421.6,2421.3,4.90446162]
[1750889220252,1.911,2421.6,2421.4,4.12984224]
[1750889220460,1.911,2421.6,2421.3,0.7746]
[1750889220778,1.911,2421.6,2421.3,4.90460434]
[1750889220980,1.911,2421.6,2421.3,0.7746]
[1750889221176,6.04054378,2421.6,2421.3,0.7746]
[1750889221374,1.911,2421.6,2421.3,4.12997936]
[1750889222573,1.911,2421.6,2421.2,4.13010451]
[1750889222740,1.911,2421.6,2421.3,4.12998496]
[1750889222941,1.911,2421.6,2421.4,4.12984224]
[1750889223341,1.911,2421.6,2421.3,4.12995513]
[1750889223661,1.911,2421.6,2421.4,4.12984224]
[1750889223861,1.911,2421.6,2421.3,4.12991819]
[1750889224061,1.911,2421.6,2421.2,4.13015959]
[1750889224378,1.911,2421.6,2421.3,4.13001062]
[1750889225367,1.911,2421.6,2421.0,7.7946]
[1750889225569,1.911,2421.6,2421.1,1.19252839]
[1750889225865,1.911,2421.6,2421.4,4.12984224]
[1750889227674,2.1174,2421.6,2421.4,4.12984224]
[1750889231673,2.1174,2421.6,2421.3,4.12993025]
[1750889231874,2.1174,2421.6,2421.1,0.2064]
[1750889232086,2.1174,2421.6,2421.3,4.13001148]
[1750889232778,2.1174,2421.6,2421.2,4.13008996]
[1750889232985,2.1174,2421.6,2421.2,5.75592454]
[1750889233949,6.24690511,2421.6,2421.2,5.75600616]
[1750889234149,2.1174,2421.6,2421.2,5.75600616]
[1750889234345,2.1174,2421.6,2421.2,4.13017158]
[1750889235480,2.1174,2421.6,2421.3,4.12995769]
[1750889237777,2.1174,2421.6,2421.2,4.13011844]
[1750889238086,2.1174,2421.6,2421.3,4.12995282]
[1750889238948,2.1174,2421.6,2421.2,4.13014694]
[1750889239379,2.1174,2421.6,2421.1,11.2786533]
[1750889239579,6.24696266,2421.6,2421.1,12.90122455]
[1750889239877,6.24696266,2421.6,2421.1,12.89022455]
[1750889242397,6.24696266,2421.6,2421.2,4.13013384]
[1750889243396,6.24696266,2421.6,2421.1,12.89025403]
[1750889243996,0.2064,2421.3,2420.9,6.92]
[1750889244290,4.33654102,2421.3,2420.9,6.92]
[1750889245093,4.13024648,2421.2,2420.8,0.2064]
[1750889245302,4.1305151,2421.1,2420.7,0.7827]
[1750889245503,4.1306047,2421.0,2420.7,0.2064]
[1750889246114,4.13070871,2420.9,2420.7,0.2064]
[1750889246263,4.13069519,2420.9,2420.7,0.2064]
[1750889246572,4.1305847,2421.0,2420.7,0.2064]
[1750889247189,4.13070221,2420.9,2420.7,0.2064]
[1750889247399,4.13057911,2421.0,2420.7,0.2064]
[1750889247968,4.13062448,2421.0,2420.7,0.2064]
[1750889248189,4.13079824,2420.9,2420.5,7.9043]
[1750889249002,4.13079824,2420.9,2420.5,0.9843]
[1750889249230,4.33700675,2421.0,2420.5,7.9043]
[1750889249374,0.2064,2421.0,2420.5,12.03566271]
[1750889249705,0.2064,2421.0,2420.6,4.13115313]
[1750889250700,0.2064,2421.0,2420.7,4.13100746]
[1750889254292,0.2064,2421.0,2420.5,7.9043]
[1750889254605,0.31539943,2422.2,2421.3,4.1300128]
[1750889254606,5.79274951,2421.5,2421.3,4.1300128]
[1750889254950,5.79274951,2421.5,2421.3,4.12999687]
[1750889256008,5.79274951,2421.5,2421.4,4.12984224]
[1750889256794,6.30954951,2422.1,2422.0,4.12881915]
[1750889256988,0.2064,2422.0,2421.7,4.12933063]
[1750889257196,0.2064,2422.0,2421.7,4.33573063]
[1750889257389,0.2064,2422.0,2421.8,4.12907253]
[1750889257900,0.2064,2422.0,2421.7,4.33563182]
[1750889258302,0.2064,2422.0,2421.7,5.18214091]
[1750889258503,0.2064,2422.0,2421.7,1.05290909]
[1750889259534,0.2064,2422.0,2421.8,4.91385134]
[1750889259693,5.79274951,2422.1,2421.8,11.83278499]
[1750889259897,5.79274951,2422.1,2421.8,7.9101]
[1750889260197,5.79274951,2422.1,2421.8,12.91481458]
[1750889262231,5.79274951,2422.1,2421.8,8.78576091]
[1750889262613,5.79274951,2422.1,2421.8,12.91491709]
[1750889263755,0.5168,2423.2,2422.2,10.0]
[1750889264047,5.79274951,2423.3,2422.9,4.12724895]
[1750889264247,5.79274951,2423.3,2423.0,4.12702731]
[1750889264619,5.79274951,2423.3,2422.8,6.919]
[1750889264822,5.79274951,2423.3,2422.9,4.12719638]
[1750889265130,5.79274951,2423.3,2422.8,11.04637018]
[1750889265325,5.79274951,2423.3,2422.9,4.12724299]
[1750889265639,5.79274951,2423.3,2423.0,4.12707487]
[1750889265816,5.79274951,2423.3,2422.8,6.919]
[1750889266016,5.79274951,2423.3,2423.1,4.12686052]
[1750889266248,5.79274951,2423.3,2423.2,4.12677451]
[1750889266652,5.79274951,2423.3,2423.2,11.04377451]
[1750889267149,5.79274951,2423.3,2423.2,4.91177451]
[1750889267353,5.79274951,2423.3,2423.2,6.919]
[1750889268956,8.21154951,2423.9,2423.1,6.916]
[1750889269167,4.12628027,2423.5,2423.1,6.916]
[1750889269847,4.12626366,2423.5,2423.1,6.916]
[1750889270825,4.12640256,2423.5,2423.1,6.916]
[1750889273736,4.12640256,2423.5,2423.2,0.2056]
[1750889275079,1.23369887,2423.8,2422.9,0.785]
[1750889275228,18.21154951,2423.9,2422.4,10.0]
[1750889275229,4.12694482,2423.1,2422.8,0.2056]
[1750889275639,0.5668,2423.2,2422.4,0.7983]
[1750889275853,4.12773951,2422.7,2422.5,0.2056]
[1750889276178,4.12779658,2422.6,2422.2,0.7983]
[1750889276326,0.2056,2422.7,2422.3,7.1204]
[1750889276526,0.2056,2422.7,2422.3,11.24868997]
[1750889276724,4.33326225,2422.7,2422.3,7.1204]
[1750889277128,0.2056,2422.7,2422.3,11.24864131]
[1750889277329,0.2056,2422.7,2422.3,4.33464131]
[1750889278026,4.33323935,2422.7,2422.3,4.33464131]
[1750889278232,4.33323935,2422.7,2422.3,0.2064]
[1750889278449,0.2056,2422.7,2422.3,4.33469395]
[1750889279569,0.2056,2422.7,2422.4,4.12812487]
[1750889281163,0.2056,2422.7,2422.6,4.12779658]
[1750889281351,6.35954951,2423.2,2422.6,4.12779658]
[1750889281352,5.79274951,2423.2,2423.1,4.12694482]
[1750889281566,0.2056,2423.6,2423.3,4.12652101]
[1750889282142,0.2056,2423.6,2423.1,7.9341]
[1750889282143,0.2056,2423.6,2423.5,4.12626366]
[1750889282353,4.12549184,2424.0,2423.1,7.7285]
[1750889282354,0.5668,2424.0,2423.1,7.7285]
[1750889282545,0.5668,2424.0,2423.2,4.89947842]
[1750889282546,4.12591075,2423.8,2423.2,4.89947842]
[1750889282756,0.2056,2423.7,2423.3,0.2056]
[1750889282968,0.2056,2423.7,2423.4,4.1264287]
[1750889283131,0.2056,2423.7,2423.3,4.33217516]
[1750889283756,0.2056,2423.7,2423.4,4.12640612]
[1750889284260,0.2056,2423.7,2423.5,4.12625182]
[1750889284463,0.2056,2423.7,2423.5,4.12624889]
[1750889284741,0.2056,2423.7,2423.4,4.12629419]
[1750889285158,0.2056,2423.7,2423.3,0.2056]
[1750889285480,0.2056,2423.7,2423.3,4.33211816]
[1750889285879,0.2056,2423.7,2423.3,11.24611816]
[1750889286040,0.2056,2423.7,2423.4,4.12640196]
[1750889286237,0.2056,2423.7,2423.6,4.12609341]
[1750889286464,0.2056,2423.7,2423.5,4.12624264]
[1750889286833,0.2056,2423.7,2423.4,4.12636303]
[1750889287034,0.2056,2423.7,2423.5,4.12620868]
[1750889287233,0.2056,2423.7,2423.4,4.12635082]
[1750889287476,0.2056,2423.7,2423.5,4.12621768]
[1750889287973,0.5668,2423.6,2422.5,0.8037]
[1750889288174,1.851,2423.5,2422.7,4.12754139]
[1750889288369,0.24178,2423.4,2422.7,4.12754139]
[1750889288551,4.12681558,2423.2,2422.7,4.12754139]
[1750889288949,4.36828239,2423.4,2422.5,0.8037]
[1750889288950,4.12660421,2423.3,2422.5,0.8037]
[1750889289147,4.12770693,2422.7,2422.2,4.89326369]
[1750889289348,4.12770693,2422.7,2422.2,11.82126369]
[1750889289673,4.12770693,2422.7,2422.2,9.28790602]
[1750889289840,1.851,2423.0,2422.2,9.28790602]
[1750889290044,5.97821113,2423.0,2422.3,4.1281551]
[1750889290243,5.97821113,2423.0,2422.4,4.12804944]
[1750889290775,4.1273079,2422.9,2422.4,4.12804944]
[1750889291075,5.97821276,2423.0,2422.4,4.12813738]
[1750889291272,4.12747564,2422.8,2422.3,4.12823772]
[1750889291474,4.12734799,2422.9,2422.4,1.59495554]
[1750889291663,4.12734799,2422.9,2422.4,5.72307822]
[1750889293670,4.12749844,2422.8,2422.4,1.59495554]
[1750889293867,4.12730863,2422.9,2422.4,4.12807379]
[1750889294369,5.97813566,2423.0,2422.5,4.1278668]
[1750889296366,21.77066513,2423.2,2422.3,0.8088]
[1750889296566,21.77066513,2423.2,2422.9,4.12712322]
[1750889296567,5.79274951,2423.2,2422.9,4.12712322]
[1750889296755,5.79274951,2423.2,2423.0,4.12708915]
[1750889296962,5.79274951,2423.2,2423.0,4.12701437]
[1750889297983,5.79274951,2423.2,2423.1,0.2056]
[1750889298184,5.79274951,2423.2,2423.1,4.33254482]
[1750889298384,1.851,2423.5,2423.2,4.1266611]
[1750889298883,1.851,2423.5,2423.3,0.2056]
[1750889299047,1.851,2423.5,2423.3,4.33210334]
[1750889299251,1.851,2423.5,2423.4,1.0144]
[1750889300384,1.851,2423.5,2423.4,5.14083393]
[1750889300551,10.0,2423.8,2423.4,5.14083393]
[1750889301251,10.0,2423.8,2423.4,1.0144]
[1750889301765,10.0,2423.8,2423.5,4.12623543]
[1750889302080,10.2056,2423.9,2423.5,4.12623543]
[1750889302286,26.04505159,2430.0,2423.5,0.92672099]
[1750889302287,0.5668,2424.3,2423.5,0.92672099]
[1750889302484,4.3306872,2424.2,2423.8,0.2056]
[1750889302684,10.2056,2424.2,2423.8,4.33135154]
[1750889302855,10.0,2424.2,2423.8,4.12562731]
[1750889303052,10.0,2424.2,2424.0,4.12540405]
[1750889303382,10.0,2424.2,2423.9,4.33112816]
[1750889303859,10.0,2424.2,2423.9,0.2056]
[1750889304374,4.12422843,2424.7,2423.4,4.12642157]
[1750889304375,4.06953931,2425.9,2425.0,0.7609]
[1750889304579,0.2056,2425.7,2425.6,10.0]
[1750889304774,0.97342426,2426.2,2425.4,10.0]
[1750889304775,4.12186905,2426.1,2425.4,10.0]
[1750889304953,0.97836294,2426.1,2425.7,0.2056]
[1750889305159,4.32747031,2426.1,2425.7,0.2056]
[1750889305455,0.2056,2426.1,2425.7,0.2056]
[1750889305661,4.12206014,2426.0,2425.7,0.2056]
[1750889305883,4.3275209,2426.1,2425.7,0.2056]
[1750889306092,4.12201909,2426.0,2425.7,0.2056]
[1750889306404,0.43276191,2425.9,2425.7,0.2056]
[1750889306557,0.2056,2426.1,2425.7,0.2056]
[1750889306890,4.32746272,2426.1,2425.7,0.2056]
[1750889307050,0.2056,2426.1,2425.7,0.2056]
[1750889307669,0.5668,2426.3,2425.7,0.2056]
[1750889307860,4.1220341,2426.0,2425.7,0.2056]
[1750889308183,4.1222791,2425.9,2425.7,0.2056]
[1750889308687,4.12235138,2425.8,2425.7,0.2056]
[1750889309072,4.12220223,2425.9,2425.7,0.2056]
[1750889310354,4.12208204,2426.0,2425.7,0.2056]
[1750889310552,0.2056,2426.1,2425.7,0.2056]
[1750889310985,1.85,2426.4,2426.0,4.1218928]
[1750889311203,11.66707495,2426.3,2426.1,4.12182896]
[1750889311487,11.66707495,2426.3,2425.9,4.32776056]
[1750889311675,1.66707495,2426.3,2425.9,4.32776056]
[1750889312197,1.66707495,2426.3,2426.0,4.12200305]
[1750889312590,1.66707495,2426.3,2425.9,0.2056]
[1750889312795,1.66707495,2426.3,2426.0,4.1220019]
[1750889313790,1.66707495,2426.3,2425.9,4.32769678]
[1750889314456,1.66707495,2426.3,2425.9,4.32769508]
[1750889314658,1.49814376,2426.2,2425.9,0.2056]
[1750889316570,4.12201154,2426.0,2425.9,0.2056]
[1750889316903,0.2056,2426.1,2425.7,0.2056]
[1750889317200,4.12208796,2426.0,2425.7,0.2056]
[1750889317399,5.58356291,2426.0,2425.7,0.2056]
[1750889318184,1.46147495,2426.0,2425.7,0.2056]
[1750889318396,5.5834981,2426.0,2425.7,0.2056]
[1750889318761,5.5834981,2426.0,2425.2,0.7995]
[1750889318762,2.02827495,2426.0,2425.2,0.7995]
[1750889318987,4.32803155,2425.8,2425.3,0.2056]
[1750889319191,4.12271338,2425.6,2425.3,0.2056]
[1750889319396,4.12295176,2425.5,2425.0,4.12369276]
[1750889319615,2.4438,2425.5,2424.9,0.7995]
[1750889319766,0.2056,2425.3,2424.9,0.2056]
[1750889319967,6.951,2425.4,2425.0,4.12357442]
[1750889320184,7.64631659,2425.4,2425.0,4.32917442]
[1750889320717,4.8183521,2425.4,2425.0,0.2056]
[1750889321470,4.12331531,2425.3,2425.0,0.2056]
[1750889321718,4.12354129,2425.1,2424.6,4.12438131]
[1750889321918,4.12354129,2425.1,2424.8,0.2056]
[1750889322077,5.58501624,2425.1,2424.8,0.2056]
[1750889322574,1.46147495,2425.1,2424.8,0.2056]
[1750889323708,5.58505252,2425.1,2424.8,0.2056]
[1750889324998,1.46147495,2425.1,2424.8,4.32963812]
[1750889325476,0.2056,2425.2,2424.8,0.2056]
[1750889325679,4.32866339,2425.4,2424.9,4.32938728]
[1750889327407,0.2056,2425.4,2425.0,4.12362138]
[1750889328103,4.32865324,2425.4,2424.9,4.32938874]
[1750889330000,4.32865324,2425.4,2425.0,4.12369935]
[1750889330601,4.32865324,2425.4,2424.9,4.32938776]
[1750889331409,0.2056,2425.4,2425.0,4.12367571]
[1750889331610,6.00069293,2425.6,2425.1,4.12340962]
[1750889331808,15.01454265,2425.6,2425.1,4.32900962]
[1750889332013,10.89184972,2425.6,2425.2,4.12326273]
[1750889332211,6.35954951,2425.8,2425.2,4.12328287]
[1750889332511,4.1226974,2425.6,2425.4,0.2056]
[1750889333398,4.12260656,2425.7,2425.4,0.2056]
[1750889333810,4.12269255,2425.6,2425.4,0.2056]
[1750889334513,4.12265311,2425.7,2425.4,0.2056]
[1750889334720,10.68754378,2425.8,2425.4,0.2056]
[1750889335187,5.79274951,2425.8,2425.4,4.12295846]
[1750889335391,9.91511243,2425.8,2425.5,0.2056]
[1750889335587,5.79274951,2425.8,2425.5,4.32844]
[1750889335799,5.79274951,2425.8,2425.5,0.2056]
[1750889336287,5.79274951,2425.8,2425.6,4.12267057]
[1750889337227,5.79274951,2425.8,2425.7,4.12252133]
[1750889337814,5.79274951,2425.8,2425.6,4.12261854]
[1750889338021,5.79274951,2425.8,2425.6,4.12268196]
[1750889338601,5.79274951,2425.8,2425.7,4.12252133]
[1750889338822,10.4578,2426.2,2425.8,4.12225621]
[1750889339127,0.2056,2426.2,2426.0,4.12200572]
[1750889339821,0.2056,2426.2,2425.8,4.32785621]
[1750889340001,6.00435958,2426.2,2425.8,0.2056]
[1750889340889,6.00435958,2426.2,2425.8,4.32793864]
[1750889341089,6.00436219,2426.2,2425.8,0.2056]
[1750889341530,1.88267576,2426.2,2425.8,4.32793689]
[1750889341712,4.32729497,2426.2,2425.8,0.2056]
[1750889341917,4.32729497,2426.2,2425.8,4.32791085]
[1750889341918,0.2056,2426.2,2425.8,4.32791085]
[1750889342115,4.32728766,2426.2,2425.8,0.2056]
[1750889342319,0.2056,2426.2,2425.8,4.327918]
[1750889342754,4.32735163,2426.2,2425.8,0.2056]
[1750889343227,4.1220893,2426.0,2425.5,4.95404775]
[1750889343428,4.1220893,2426.0,2425.6,0.2056]
[1750889343948,4.12219852,2425.9,2425.6,0.2056]
[1750889344118,4.122103,2426.0,2425.6,0.2056]
[1750889344820,4.32756366,2426.1,2425.6,4.32826037]
[1750889347347,4.12202569,2426.0,2425.6,0.2056]
[1750889347550,4.12202569,2426.0,2425.6,4.32828526]
[1750889348659,4.12202569,2426.0,2425.6,0.2056]
[1750889349356,1.43714414,2426.0,2425.3,4.12320125]
[1750889349554,4.1222042,2425.9,2425.5,0.2056]
[1750889351342,4.12239777,2425.8,2425.5,0.2056]
[1750889351742,4.12224908,2425.9,2425.5,0.2056]
[1750889352658,4.12224908,2425.9,2425.4,4.12294783]
[1750889352961,0.2056,2425.8,2425.4,4.32854783]
[1750889354569,4.327978,2425.8,2425.4,4.32854783]
[1750889355752,4.327978,2425.8,2425.4,0.2056]
[1750889356849,0.2056,2425.8,2425.4,4.32862335]
[1750889357155,4.3279563,2425.8,2425.4,4.32862335]
[1750889357580,0.2056,2425.8,2425.4,4.32862335]
[1750889357982,4.32802766,2425.8,2425.4,0.2056]
[1750889359086,4.12252197,2425.7,2425.4,0.2056]
[1750889359293,4.32804832,2425.8,2425.4,0.2056]
[1750889360752,0.2056,2425.8,2425.4,5.24370596]
[1750889360948,4.3279641,2425.8,2425.4,1.12075981]
[1750889361148,4.3279641,2425.8,2425.4,4.32862099]
[1750889361350,0.2056,2425.8,2425.4,4.32862099]
[1750889361854,0.2056,2425.8,2425.4,0.2056]
[1750889362052,0.5668,2425.4,2424.7,0.762]
[1750889362255,11.03427186,2425.3,2424.7,0.762]
[1750889362476,4.12390652,2424.9,2424.5,0.762]